bitfinex/quotes_BTCUSD_20250826
["timestamp","ask_amount","ask_price","bid_price","bid_amount"]
[1756206345084,6.51710447,110360.0,110350.0,0.00558]
[1756206345645,6.54986455,110360.0,110350.0,0.00558]
[1756206345855,7.15302155,110360.0,110350.0,0.00558]
[1756206347912,7.15302155,110360.0,110350.0,0.00357]
[1756206348089,7.16151936,110360.0,110350.0,0.00357]
[1756206348307,7.20478801,110360.0,110350.0,0.0004]
[1756206348485,7.19060888,110360.0,110350.0,0.0004]
[1756206350060,7.19060387,110360.0,110350.0,0.0004]
[1756206350260,7.19060387,110360.0,110350.0,0.00361]
[1756206350392,7.26032282,110360.0,110350.0,0.0004]
[1756206350830,7.26032156,110360.0,110350.0,0.0004]
[1756206353583,6.05400756,110360.0,110350.0,0.0004]
[1756206353786,7.26031873,110360.0,110350.0,0.0004]
[1756206354346,7.26131873,110360.0,110350.0,0.0004]
[1756206354904,7.30193095,110360.0,110350.0,0.0004]
[1756206355936,7.29343714,110360.0,110350.0,0.0004]
[1756206356131,7.30192673,110360.0,110350.0,0.0004]
[1756206356765,7.30292673,110360.0,110350.0,0.0004]
[1756206359359,7.31981329,110360.0,110350.0,0.0004]
[1756206359569,7.16657366,110360.0,110350.0,0.0004]
[1756206359770,7.31981165,110360.0,110350.0,0.0004]
[1756206359946,0.52125793,110340.0,110330.0,0.07698163]
[1756206360136,6.47212846,110340.0,110330.0,0.07698163]
[1756206360333,6.47212846,110340.0,110330.0,0.07899163]
[1756206360591,6.34614846,110340.0,110330.0,0.07899163]
[1756206360813,6.49938846,110340.0,110330.0,0.07899163]
[1756206361347,6.51692376,110340.0,110330.0,0.07899163]
[1756206361561,6.51692376,110340.0,110330.0,0.07798163]
[1756206361768,6.51692376,110340.0,110330.0,0.07898163]
[1756206362198,6.36368376,110340.0,110330.0,0.08099163]
[1756206362405,6.51692376,110340.0,110330.0,0.08099163]
[1756206363197,6.51692376,110340.0,110330.0,0.07899163]
[1756206363768,6.51692376,110340.0,110330.0,0.07698163]
[1756206363966,6.51692376,110340.0,110330.0,0.07899163]
[1756206364336,6.51692376,110340.0,110330.0,0.07698163]
[1756206366896,6.58664376,110340.0,110330.0,0.07698163]
[1756206367626,6.43340376,110340.0,110330.0,0.07698163]
[1756206367784,6.58664376,110340.0,110330.0,0.07698163]
[1756206369116,6.58664376,110340.0,110330.0,0.07377163]
[1756206369313,6.58664376,110340.0,110330.0,0.07698163]
[1756206369572,6.60609367,110340.0,110330.0,0.07698163]
[1756206370484,6.60609367,110340.0,110330.0,0.07377163]
[1756206370654,6.61242539,110340.0,110330.0,0.07377163]
[1756206371247,6.61242539,110340.0,110330.0,0.07899163]
[1756206371436,6.61242539,110340.0,110330.0,0.07698163]
[1756206371913,6.54217396,110340.0,110330.0,0.07698163]
[1756206372540,0.53872337,110330.0,110320.0,0.00339]
[1756206372744,6.4451241,110330.0,110320.0,0.00339]
[1756206373107,6.4487591,110330.0,110320.0,0.00549]
[1756206374114,7.0519161,110330.0,110320.0,0.00028]
[1756206374324,7.16024017,110330.0,110320.0,0.00339]
[1756206374526,7.16024017,110330.0,110320.0,0.00028]
[1756206374808,5.95392617,110330.0,110320.0,0.00339]
[1756206375091,6.46563788,110330.0,110320.0,0.00339]
[1756206375298,6.50560765,110330.0,110320.0,0.00339]
[1756206375534,6.50560765,110330.0,110320.0,0.00549]
[1756206376351,6.5197919,110330.0,110320.0,0.00549]
[1756206376565,6.32106853,110330.0,110320.0,0.00549]
[1756206376771,6.50234288,110330.0,110320.0,0.00549]
[1756206377423,6.4854641,110330.0,110320.0,0.00549]
[1756206377633,6.3322241,110330.0,110320.0,0.00549]
[1756206377840,6.4854641,110330.0,110320.0,0.00549]
[1756206378041,6.48546102,110330.0,110320.0,0.00549]
[1756206378445,6.48546102,110330.0,110320.0,0.00339]
[1756206378659,6.50291004,110330.0,110320.0,0.00339]
[1756206379203,6.50291004,110330.0,110320.0,0.00549]
[1756206380156,6.50291004,110330.0,110320.0,0.00339]
[1756206380798,6.50291004,110330.0,110320.0,0.00549]
[1756206381429,6.50291004,110330.0,110320.0,0.00339]
[1756206381849,6.50291004,110330.0,110320.0,0.00549]
[1756206382462,6.50291004,110330.0,110320.0,0.00339]
[1756206383193,6.50290885,110330.0,110320.0,0.00339]
[1756206383799,6.46293908,110330.0,110320.0,0.00549]
[1756206384212,6.46293908,110330.0,110320.0,0.00339]
[1756206384413,6.46293908,110330.0,110320.0,0.00549]
[1756206385726,6.50595643,110330.0,110320.0,0.00549]
[1756206385881,6.50595643,110330.0,110320.0,0.00339]
[1756206386091,7.10911343,110330.0,110320.0,0.00028]
[1756206386725,7.13342187,110330.0,110320.0,0.00028]
[1756206387708,7.13342587,110330.0,110320.0,0.00028]
[1756206387955,7.09040852,110330.0,110320.0,0.00028]
[1756206388166,7.11697982,110330.0,110320.0,0.00028]
[1756206388400,7.11698127,110330.0,110320.0,0.00028]
[1756206388600,7.11698127,110330.0,110320.0,0.00339]
[1756206388807,7.11698127,110330.0,110320.0,0.00549]
[1756206388808,6.51382427,110330.0,110320.0,0.00549]
[1756206389029,6.48725297,110330.0,110320.0,0.00549]
[1756206390161,6.48725297,110330.0,110320.0,0.00339]
[1756206390797,6.48725297,110330.0,110320.0,0.00549]
[1756206391441,6.48725297,110330.0,110320.0,0.00339]
[1756206391648,6.48725297,110330.0,110320.0,0.00549]
[1756206392406,6.48725297,110330.0,110320.0,0.00339]
[1756206392613,6.48725297,110330.0,110320.0,0.00549]
[1756206394957,6.48725297,110330.0,110270.0,0.07528]
[1756206394958,0.18135586,110290.0,110270.0,0.07528]
[1756206395178,0.18135586,110290.0,110280.0,0.0021]
[1756206395610,0.18135586,110290.0,110280.0,0.00521]
[1756206396177,0.18135586,110290.0,110280.0,0.00568741]
[1756206396801,0.20862086,110290.0,110280.0,0.00568741]
[1756206397408,0.66155874,110290.0,110280.0,0.00568741]
[1756206397591,0.18135586,110290.0,110280.0,0.01068741]
[1756206397787,0.66155974,110290.0,110280.0,0.00568741]
[1756206398264,0.81479974,110290.0,110280.0,0.01268741]
[1756206398666,6.65035858,110290.0,110280.0,0.01268741]
[1756206398788,5.70186186,110290.0,110280.0,0.00968741]
[1756206398997,6.16876875,110290.0,110280.0,0.00968741]
[1756206399203,6.16876875,110290.0,110280.0,0.01168741]
[1756206399402,6.31993017,110290.0,110280.0,0.01168741]
[1756206399869,6.31993017,110290.0,110280.0,0.00968741]
[1756206400283,6.41139219,110290.0,110280.0,0.00568741]
[1756206400486,6.41139219,110290.0,110280.0,0.00868741]
[1756206401702,6.41139219,110290.0,110280.0,0.00968741]
[1756206404603,5.65405289,110290.0,110280.0,0.00968741]
[1756206404822,5.80729289,110290.0,110280.0,0.00968741]
[1756206405024,6.41139219,110290.0,110280.0,0.00968741]
[1756206409255,5.80729289,110290.0,110280.0,0.00968741]
[1756206409458,6.41295219,110290.0,110280.0,0.00968741]
[1756206409880,6.25815219,110290.0,110280.0,0.00968741]
[1756206410090,6.41295219,110290.0,110280.0,0.00968741]
[1756206415934,5.80885289,110290.0,110280.0,0.00968741]
[1756206416054,6.41295219,110290.0,110280.0,0.00968741]
[1756206416666,6.41299219,110290.0,110280.0,0.00968741]
[1756206419809,5.56259087,110290.0,110280.0,0.00968741]
[1756206420015,0.35012487,110290.0,110280.0,0.01195436]
[1756206420237,0.35012487,110290.0,110280.0,0.00968741]
[1756206420449,0.37739287,110290.0,110280.0,0.00968741]
[1756206421563,0.83034494,110290.0,110280.0,0.00968741]
[1756206422454,0.37739287,110290.0,110280.0,0.01195436]
[1756206422710,0.83034494,110290.0,110280.0,0.01195436]
[1756206423411,0.37739287,110290.0,110280.0,0.01195436]
[1756206423636,0.37739287,110290.0,110280.0,0.1933109]
[1756206423855,0.027268,110290.0,110280.0,0.19104395]
[1756206424057,0.33611291,110300.0,110290.0,0.1813401]
[1756206424265,0.33611291,110300.0,110290.0,0.1867501]
[1756206425312,0.33611291,110300.0,110290.0,0.1877501]
[1756206425934,0.33611291,110300.0,110290.0,0.1887501]
[1756206426108,0.33611291,110300.0,110290.0,0.00741]
[1756206426776,0.33611291,110300.0,110290.0,0.00967675]
[1756206426978,0.34911116,110300.0,110290.0,0.00967675]
[1756206427387,0.34911116,110300.0,110290.0,0.00741]
[1756206427744,0.34911116,110300.0,110290.0,0.00967675]
[1756206429418,0.34911116,110300.0,110290.0,0.19101685]
[1756206429621,0.34911116,110300.0,110290.0,0.00741]
[1756206429801,0.34911116,110300.0,110290.0,0.00967675]
[1756206431621,0.34911116,110300.0,110290.0,0.19101685]
[1756206431844,0.34911116,110300.0,110290.0,0.1887501]
[1756206432043,0.19435116,110300.0,110290.0,0.1887501]
[1756206432261,0.68505258,110310.0,110290.0,0.1887501]
[1756206432459,0.68505258,110310.0,110300.0,0.00525654]
[1756206432681,0.68505258,110310.0,110300.0,0.1886602]
[1756206432682,0.19037258,110310.0,110300.0,0.1886602]
[1756206432899,0.34505258,110310.0,110300.0,0.18639366]
[1756206433123,0.01309725,110310.0,110300.0,0.18639366]
[1756206433332,0.18130722,110310.0,110300.0,0.18639366]
[1756206433539,0.19040315,110320.0,110300.0,0.18639366]
[1756206433752,5.5,110310.0,110300.0,0.18340366]
[1756206433970,5.01303701,110310.0,110300.0,0.18340366]
[1756206434166,0.01303701,110310.0,110300.0,0.18340366]
[1756206434388,0.34528315,110320.0,110300.0,0.18639366]
[1756206434590,5.0,110310.0,110300.0,0.18440366]
[1756206435028,5.0,110310.0,110300.0,0.18739366]
[1756206435661,0.63089705,110330.0,110310.0,0.1812994]
[1756206435872,5.33625079,110320.0,110310.0,0.1812994]
[1756206436078,0.33625079,110320.0,110310.0,0.1833794]
[1756206436545,0.33625079,110320.0,110310.0,0.1863694]
[1756206436754,0.18229079,110320.0,110310.0,0.1863694]
[1756206436966,0.18129079,110320.0,110310.0,0.1863694]
[1756206437316,0.18229079,110320.0,110310.0,0.1863694]
[1756206438041,0.18329079,110320.0,110310.0,0.1863694]
[1756206438947,0.002,110320.0,110310.0,0.94521273]
[1756206439532,0.002,110320.0,110310.0,0.3412894]
[1756206440098,0.001,110320.0,110310.0,0.3412894]
[1756206440298,0.19418987,110330.0,110320.0,0.18129079]
[1756206440505,0.19418987,110330.0,110320.0,0.18636079]
[1756206441612,0.19418987,110330.0,110320.0,0.1868382]
[1756206441751,0.19418987,110330.0,110320.0,0.00554741]
[1756206441951,0.19518987,110330.0,110320.0,0.00554741]
[1756206442461,0.19518987,110330.0,110320.0,0.1868382]
[1756206445345,0.19518959,110330.0,110320.0,0.1868382]
[1756206445761,0.19518959,110330.0,110320.0,0.16170741]
[1756206446160,0.19518959,110330.0,110320.0,0.3429982]
[1756206446843,0.19518959,110330.0,110320.0,0.00554741]
[1756206447022,0.19518959,110330.0,110320.0,0.16170741]
[1756206447229,0.19518959,110330.0,110320.0,0.3429982]
[1756206448273,0.19518959,110330.0,110320.0,0.00554741]
[1756206448916,0.19518959,110330.0,110320.0,0.1868382]
[1756206449728,0.19518959,110330.0,110320.0,0.00554741]
[1756206452437,0.19518959,110330.0,110320.0,0.00346741]
[1756206452640,0.19518959,110330.0,110320.0,0.00554741]
[1756206452897,0.79911292,110330.0,110320.0,0.00047741]
[1756206453485,0.64786649,110330.0,110320.0,0.00047741]
[1756206453692,0.64786649,110330.0,110320.0,0.00346741]
[1756206453914,0.19518959,110330.0,110320.0,0.00554741]
[1756206454099,0.64786649,110330.0,110320.0,0.00554741]
[1756206454304,0.64786649,110330.0,110320.0,0.00346741]
[1756206455623,0.64786649,110330.0,110320.0,0.00047741]
[1756206456053,5.64786649,110330.0,110320.0,0.00047741]
[1756206457582,5.7988364,110330.0,110320.0,0.00047741]
[1756206459626,5.19518959,110330.0,110320.0,0.00346741]
[1756206459867,5.9551564,110330.0,110320.0,0.00047741]
[1756206461683,5.9551564,110330.0,110320.0,0.00369741]
[1756206462845,5.94124116,110330.0,110320.0,0.00369741]
[1756206463857,5.18127435,110330.0,110320.0,0.00565741]
[1756206464080,0.33767435,110330.0,110320.0,0.00565741]
[1756206464485,0.35045099,110330.0,110320.0,0.00565741]
[1756206466856,0.35045099,110330.0,110320.0,0.00536995]
[1756206469295,0.19405099,110330.0,110320.0,0.00536995]
[1756206469466,0.35041099,110330.0,110320.0,0.00536995]
[1756206469971,0.35037099,110330.0,110320.0,0.00536995]
[1756206474901,0.35017099,110330.0,110320.0,0.00763608]
[1756206475262,0.35017099,110330.0,110320.0,0.00536995]
[1756206476242,0.9538178,110330.0,110320.0,0.00018995]
[1756206476449,5.9538178,110330.0,110320.0,0.00018995]
[1756206476879,5.35017099,110330.0,110320.0,0.00340995]
[1756206477082,5.9538178,110330.0,110320.0,0.00018995]
[1756206477499,6.0761309,110330.0,110320.0,0.00018995]
[1756206478302,6.4161309,110330.0,110320.0,0.00018995]
[1756206479308,6.26524225,110330.0,110320.0,0.00018995]
[1756206479683,6.23439117,110330.0,110320.0,0.00018995]
[1756206479884,6.23419117,110330.0,110320.0,0.00018995]
[1756206480666,6.71780041,110330.0,110320.0,0.00018995]
[1756206480882,6.74506241,110330.0,110320.0,0.00018995]
[1756206481102,6.82773767,110330.0,110320.0,0.00018995]
[1756206481954,6.77097924,110330.0,110320.0,0.00018995]
[1756206482185,5.83461184,110330.0,110320.0,0.00536995]
[1756206482375,6.26353317,110330.0,110320.0,0.00340995]
[1756206482578,6.26453317,110330.0,110320.0,0.00340995]
[1756206482736,6.26461317,110330.0,110320.0,0.00340995]
[1756206483427,6.01707115,110330.0,110320.0,0.00536995]
[1756206483630,6.17319115,110330.0,110320.0,0.00536995]
[1756206484363,6.17319115,110330.0,110320.0,0.00018995]
[1756206484568,5.56431299,110330.0,110320.0,0.00018995]
[1756206484764,6.17315115,110330.0,110320.0,0.00018995]
[1756206485427,6.3240318,110330.0,110320.0,0.00018995]
[1756206485630,6.1679518,110330.0,110320.0,0.00536995]
[1756206485872,6.3240318,110330.0,110320.0,0.00536995]
[1756206487168,6.1679518,110330.0,110320.0,0.00536995]
[1756206487788,6.3239918,110330.0,110320.0,0.00536995]
[1756206488543,5.56431299,110330.0,110320.0,0.00536995]
[1756206488757,5.72035299,110330.0,110320.0,0.00536995]
[1756206488937,6.3239918,110330.0,110320.0,0.00536995]
[1756206489866,5.72035299,110330.0,110320.0,0.00536995]
[1756206490074,6.3239918,110330.0,110320.0,0.00536995]
[1756206490935,5.72035299,110330.0,110320.0,0.00536995]
[1756206491148,5.56431299,110330.0,110320.0,0.00536995]
[1756206491560,5.69325099,110330.0,110320.0,0.00536995]
[1756206491999,0.19705099,110330.0,110320.0,0.79029955]
[1756206492216,0.35329099,110330.0,110320.0,0.79029955]
[1756206492621,0.19705099,110330.0,110320.0,0.79029955]
[1756206492828,0.35129099,110330.0,110320.0,0.79029955]
[1756206493031,0.35329099,110330.0,110320.0,0.18666074]
[1756206493438,0.35029099,110330.0,110320.0,0.18666074]
[1756206493638,0.35125099,110330.0,110320.0,0.18666074]
[1756206494223,0.19405099,110330.0,110320.0,0.18666074]
[1756206494443,0.35021099,110330.0,110320.0,0.18666074]
[1756206495654,0.16893664,110330.0,110320.0,0.18666074]
[1756206495856,0.35021099,110330.0,110320.0,0.18666074]
[1756206496872,0.16893664,110330.0,110320.0,0.18666074]
[1756206497209,0.35009099,110330.0,110320.0,0.18666074]
[1756206497349,0.33731435,110330.0,110320.0,0.18666074]
[1756206497550,0.16796084,110330.0,110320.0,0.79029955]
[1756206497779,0.15604,110330.0,110320.0,0.79029955]
[1756206498207,0.15604,110330.0,110320.0,0.18666074]
[1756206498884,0.06972,110340.0,110330.0,0.18127435]
[1756206499038,0.52125793,110340.0,110330.0,0.18636435]
[1756206499262,0.027256,110350.0,110330.0,0.79000316]
[1756206499450,0.2652006,110360.0,110340.0,0.79022246]
[1756206499451,0.25101853,110360.0,110340.0,0.79022246]
[1756206499722,0.3382815,110350.0,110340.0,0.18125793]
[1756206499922,0.3382815,110350.0,110340.0,0.18555365]
[1756206500332,0.01199688,110350.0,110340.0,0.18861365]
[1756206500535,0.35031838,110350.0,110340.0,0.18634793]
[1756206500672,0.3383215,110350.0,110340.0,0.18634793]
[1756206500878,0.35023872,110350.0,110340.0,0.18634793]
[1756206502059,0.16117248,110350.0,110340.0,0.18634793]
[1756206502429,0.34241398,110350.0,110340.0,0.18634793]
[1756206502648,0.01191722,110350.0,110340.0,0.18634793]
[1756206502854,0.16895722,110350.0,110340.0,0.78998674]
[1756206503058,0.16895722,110350.0,110340.0,0.18634793]
[1756206503059,0.15704,110350.0,110340.0,0.18634793]
[1756206504302,0.027253,110360.0,110350.0,0.1812415]
[1756206504506,0.18122508,110360.0,110350.0,0.1863315]
[1756206504723,0.19308894,110360.0,110350.0,0.1863315]
[1756206504926,0.19308894,110360.0,110350.0,0.00509]
[1756206505133,0.19308894,110360.0,110350.0,0.18859701]
[1756206505364,0.19308894,110360.0,110350.0,0.1863315]
[1756206506206,0.19308894,110360.0,110350.0,0.1873315]
[1756206507331,0.79672775,110360.0,110350.0,0.00406]
[1756206507536,0.79672775,110360.0,110350.0,0.001]
[1756206507696,0.95488775,110360.0,110350.0,0.001]
[1756206508523,0.35124894,110360.0,110350.0,0.001]
[1756206508825,0.95488775,110360.0,110350.0,0.001]
[1756206509027,0.95488775,110360.0,110350.0,0.002]
[1756206509272,0.76676388,110360.0,110350.0,0.002]
[1756206509502,0.34435015,110360.0,110350.0,0.002]
[1756206509722,0.34435015,110360.0,110350.0,0.00709]
[1756206509934,0.34435015,110360.0,110350.0,0.19059701]
[1756206510138,0.34435015,110360.0,110350.0,0.1883315]
[1756206510987,0.00496507,110360.0,110350.0,0.1883315]
[1756206511410,1.3104227,110370.0,110360.0,0.18122508]
[1756206511642,1.3104227,110370.0,110360.0,0.18631508]
[1756206511643,0.70674389,110370.0,110360.0,0.18631508]
[1756206511881,0.17043487,110370.0,110360.0,0.18631508]
[1756206512112,0.15828,110370.0,110360.0,0.18631508]
[1756206512354,0.217592,110380.0,110360.0,0.18631508]
[1756206512582,0.46737402,110380.0,110370.0,0.00306]
[1756206512821,0.55806862,110380.0,110370.0,0.0053251]
[1756206513026,0.55806862,110380.0,110370.0,0.0073551]
[1756206513027,1.32006743,110380.0,110370.0,0.0073551]
[1756206513280,0.71642862,110380.0,110370.0,0.0073551]
[1756206513713,0.68918062,110380.0,110370.0,0.0073551]
[1756206513920,1.29281943,110380.0,110370.0,0.0073551]
[1756206514327,1.29281943,110380.0,110370.0,0.00509]
[1756206514956,1.29381943,110380.0,110370.0,0.00509]
[1756206515375,0.68012101,110380.0,110370.0,0.00509]
[1756206515574,0.17100721,110380.0,110370.0,0.00509]
[1756206515727,0.61616602,110380.0,110370.0,0.00509]
[1756206515945,0.35223945,110380.0,110370.0,0.00509]
[1756206516123,0.17300721,110380.0,110370.0,0.00509]
[1756206516500,0.95583826,110380.0,110370.0,0.00509]
[1756206516680,0.00047662,110380.0,110370.0,0.0073551]
[1756206516916,0.00047662,110380.0,110370.0,0.19082886]
[1756206517160,0.00047662,110380.0,110370.0,0.00509]
[1756206517381,0.00047662,110380.0,110370.0,0.35066886]
[1756206517592,0.00047662,110380.0,110370.0,0.34613866]
[1756206517801,0.00047662,110380.0,110370.0,0.16493]
[1756206518009,0.00047662,110380.0,110370.0,0.16593]
[1756206518216,0.00047662,110380.0,110370.0,0.34713866]
[1756206518843,0.00047662,110380.0,110370.0,0.34813866]
[1756206521020,0.00047662,110380.0,110370.0,0.95177747]
[1756206521107,0.00047662,110380.0,110370.0,1.04323949]
[1756206521334,0.00047662,110380.0,110370.0,1.11291949]
[1756206521573,0.027242,110410.0,110390.0,0.18117579]
[1756206521814,0.027242,110410.0,110400.0,0.00731077]
[1756206521815,0.34,110410.0,110400.0,0.00731077]
[1756206522047,1.19807881,110410.0,110400.0,0.00519077]
[1756206522291,0.18115942,110400.0,110380.0,0.19268]
[1756206522518,0.18115942,110400.0,110380.0,0.30296232]
[1756206522746,0.1932735,110400.0,110380.0,0.12177202]
[1756206522971,0.1932735,110400.0,110390.0,0.00519]
[1756206523192,0.61575289,110400.0,110390.0,0.00519]
[1756206523417,0.1932735,110400.0,110390.0,0.00519]
[1756206523922,0.79691231,110400.0,110380.0,0.30296176]
[1756206524092,0.79695996,110400.0,110380.0,0.30296176]
[1756206524312,0.36080115,110400.0,110390.0,0.00519]
[1756206524518,0.61580054,110400.0,110390.0,0.00519]
[1756206524779,0.01216173,110400.0,110390.0,0.00519]
[1756206525006,4.765e-05,110400.0,110390.0,0.18636583]
[1756206525215,0.60368646,110400.0,110390.0,0.00519]
[1756206525423,0.60368646,110400.0,110390.0,0.00307]
[1756206525842,4.765e-05,110400.0,110390.0,0.00307]
[1756206526057,0.78484588,110400.0,110390.0,0.00307]
[1756206526297,0.78484588,110400.0,110380.0,0.12177202]
[1756206526495,0.60363881,110390.0,110380.0,0.00307]
[1756206526971,0.60363881,110390.0,110380.0,0.00519]
[1756206527187,0.18120707,110400.0,110380.0,0.00519]
[1756206527333,4.765e-05,110400.0,110390.0,0.18424583]
[1756206527599,0.60368646,110400.0,110390.0,0.18636583]
[1756206528213,0.25450577,110400.0,110380.0,0.18526115]
[1756206528408,0.18120878,110400.0,110390.0,0.00519]
[1756206528632,0.60368646,110400.0,110390.0,0.00519]
[1756206528852,0.78484588,110400.0,110390.0,0.00519]
[1756206529549,0.78484588,110400.0,110390.0,0.00619]
[1756206529709,0.95284588,110400.0,110390.0,0.00619]
[1756206529905,0.77168646,110400.0,110390.0,0.00407]
[1756206530311,4.765e-05,110400.0,110390.0,0.18963052]
[1756206530553,0.19068759,110420.0,110400.0,0.18108713]
[1756206530755,0.00044768,110420.0,110410.0,0.00745428]
[1756206531176,0.78521309,110420.0,110410.0,0.00226428]
[1756206531428,0.78521309,110420.0,110400.0,0.52422862]
[1756206531642,0.78521309,110420.0,110410.0,0.00307]
[1756206532085,0.78821309,110420.0,110410.0,0.00307]
[1756206532763,0.18357428,110420.0,110410.0,0.00745428]
[1756206532961,0.60608649,110420.0,110410.0,0.00745428]
[1756206533384,0.95569309,110420.0,110410.0,0.00226428]
[1756206533584,0.95369309,110420.0,110410.0,0.00307]
[1756206533897,0.95369309,110420.0,110410.0,0.00519]
[1756206534073,0.95369309,110420.0,110410.0,0.00307]
[1756206534280,0.18357428,110420.0,110410.0,0.00307]
[1756206534506,0.95369309,110420.0,110410.0,0.00519]
[1756206534951,1.29369309,110420.0,110410.0,0.00519]
[1756206535626,1.29377309,110420.0,110410.0,0.00519]
[1756206535864,1.29377309,110420.0,110410.0,0.00226428]
[1756206536326,1.29377309,110420.0,110410.0,0.00533428]
[1756206536603,0.69013428,110420.0,110410.0,0.00845428]
[1756206536812,1.29385309,110420.0,110410.0,0.00845428]
[1756206536968,1.29393309,110420.0,110410.0,0.00845428]
[1756206537405,1.29393309,110420.0,110410.0,0.00633428]
[1756206537901,1.29393309,110420.0,110410.0,0.001]
[1756206538120,0.69029428,110420.0,110410.0,0.001]
[1756206538323,1.32180279,110420.0,110410.0,0.001]
[1756206539472,0.71816398,110420.0,110410.0,0.001]
[1756206539684,6.44411589,110420.0,110410.0,0.001]
[1756206540096,6.41326481,110420.0,110410.0,0.001]
[1756206540299,6.48294481,110420.0,110410.0,0.001]
[1756206540512,0.18117571,110400.0,110380.0,0.177948]
[1756206540730,0.18117571,110400.0,110390.0,0.00212]
[1756206540731,0.95381452,110400.0,110390.0,0.00212]
[1756206540981,0.18117583,110390.0,110380.0,0.11870002]
[1756206541221,0.78481464,110390.0,110380.0,0.027238]
[1756206541440,0.18119224,110380.0,110360.0,0.00307]
[1756206541675,0.35051224,110380.0,110370.0,0.027243]
[1756206541932,0.18120866,110370.0,110360.0,0.00307]
[1756206542376,0.78484747,110370.0,110350.0,0.06759546]
[1756206542605,0.18120866,110370.0,110350.0,0.12177702]
[1756206542827,0.78484747,110370.0,110350.0,0.12225364]
[1756206543130,0.60363881,110360.0,110350.0,0.11918364]
[1756206543351,0.78484747,110370.0,110360.0,0.00307]
[1756206543585,0.18120866,110370.0,110360.0,0.00519]
[1756206544728,0.78484747,110370.0,110360.0,0.00307]
[1756206544945,0.78484747,110370.0,110350.0,0.09500864]
[1756206545174,0.78486389,110360.0,110350.0,0.09500864]
[1756206545616,0.78486389,110360.0,110350.0,0.00047662]
[1756206545617,0.95470389,110360.0,110350.0,0.00047662]
[1756206546329,0.35106508,110360.0,110350.0,0.00047662]
[1756206546563,0.95470389,110360.0,110350.0,0.00047662]
[1756206547254,0.96590855,110360.0,110350.0,0.00247662]
[1756206547675,0.36226974,110360.0,110350.0,0.00247662]
[1756206547886,0.96590855,110360.0,110350.0,0.00247662]
[1756206548102,0.96606855,110360.0,110350.0,0.00247662]
[1756206548310,0.35122508,110360.0,110350.0,0.00866662]
[1756206548730,1.5585027,110360.0,110350.0,0.00347662]
[1756206548934,0.95486389,110360.0,110350.0,0.00347662]
[1756206549575,0.35122508,110360.0,110350.0,0.00866662]
[1756206549786,0.95486389,110360.0,110350.0,0.00866662]
[1756206550015,0.96639974,110360.0,110350.0,0.00866662]
[1756206550241,0.96639974,110360.0,110350.0,0.00666662]
[1756206550949,0.96639974,110360.0,110350.0,0.00766662]
[1756206551373,0.36276093,110360.0,110350.0,0.00247662]
[1756206551586,0.96639974,110360.0,110350.0,0.00247662]
[1756206551823,0.96655974,110360.0,110350.0,0.00247662]
[1756206552039,0.96655974,110360.0,110350.0,0.00540662]
[1756206552253,0.96655974,110360.0,110350.0,0.00741662]
[1756206552468,0.96663974,110360.0,110350.0,0.00741662]
[1756206552678,0.96663974,110360.0,110350.0,0.00247662]
[1756206552887,0.96663974,110360.0,110350.0,0.00741662]
[1756206556090,0.79639974,110360.0,110350.0,0.00741662]
[1756206556293,0.96659974,110360.0,110350.0,0.00741662]
[1756206557686,0.96659974,110360.0,110350.0,0.00247662]
[1756206558342,0.36296093,110360.0,110350.0,0.00247662]
[1756206558755,0.96659974,110360.0,110350.0,0.00247662]
[1756206559377,1.57023855,110360.0,110350.0,0.00247662]
[1756206559802,0.36296093,110360.0,110350.0,0.00247662]
[1756206560009,0.96671974,110360.0,110350.0,0.00247662]
[1756206562961,7.01926959,110360.0,110350.0,0.00247662]
[1756206563694,7.01926959,110360.0,110350.0,0.00147662]
[1756206564563,7.01926959,110360.0,110350.0,0.00047662]
[1756206565513,7.18020834,110360.0,110350.0,0.00047662]
[1756206565749,7.08876305,110360.0,110350.0,0.00047662]
[1756206566693,7.11801905,110360.0,110350.0,0.00047662]
[1756206567400,7.13745222,110360.0,110350.0,0.00047662]
[1756206567648,7.1683033,110360.0,110350.0,0.00047662]
[1756206567886,7.13749222,110360.0,110350.0,0.00047662]
[1756206568144,7.13849222,110360.0,110350.0,0.00047662]
[1756206569148,7.13852331,110360.0,110350.0,0.00047662]
[1756206570346,7.13832331,110360.0,110350.0,0.00047662]
[1756206571270,5.93096569,110360.0,110350.0,0.00047662]
[1756206571476,7.13824331,110360.0,110350.0,0.00541662]
[1756206571891,7.13824331,110360.0,110350.0,0.00340662]
[1756206572234,7.13828331,110360.0,110350.0,0.00340662]
[1756206572436,7.13828331,110360.0,110350.0,0.00047662]
[1756206573044,5.93949606,110360.0,110350.0,0.00047662]
[1756206573285,7.14677368,110360.0,110350.0,0.00047662]
[1756206573575,7.14673368,110360.0,110350.0,0.00047662]
[1756206574165,7.17094401,110360.0,110350.0,0.00340662]
[1756206574368,7.17084801,110360.0,110350.0,0.00340662]
[1756206574834,7.17084801,110360.0,110350.0,0.00541662]
[1756206575055,6.3972492,110360.0,110350.0,0.00541662]
[1756206575274,6.53146283,110360.0,110350.0,0.00541662]
[1756206575501,7.14359417,110360.0,110350.0,0.00047662]
[1756206575716,7.18079007,110360.0,110350.0,0.00047662]
[1756206577037,7.14993899,110360.0,110350.0,0.00047662]
[1756206577273,7.14993899,110360.0,110350.0,0.00340662]
[1756206577492,7.14367417,110360.0,110350.0,0.00541662]
[1756206577711,5.93639655,110360.0,110350.0,0.00541662]
[1756206577930,6.97363417,110360.0,110350.0,0.00541662]
[1756206578152,7.14367417,110360.0,110350.0,0.00541662]
[1756206579238,7.13518164,110360.0,110350.0,0.00541662]
[1756206579449,7.14367641,110360.0,110350.0,0.00541662]
[1756206581023,7.14391641,110360.0,110350.0,0.00541662]
[1756206581644,7.14391641,110360.0,110350.0,0.00047662]
[1756206583445,5.93663879,110360.0,110350.0,0.00047662]
[1756206583661,7.14391641,110360.0,110350.0,0.00346662]
[1756206583882,7.14379641,110360.0,110350.0,0.00346662]
[1756206584565,7.14379641,110360.0,110350.0,0.00548662]
[1756206585216,6.97363641,110360.0,110350.0,0.00548662]
[1756206585429,7.14391641,110360.0,110350.0,0.00548662]
[1756206585611,7.11109131,110360.0,110350.0,0.00548662]
[1756206585858,7.14391941,110360.0,110350.0,0.00548662]
[1756206589045,7.14392226,110360.0,110350.0,0.00548662]
[1756206589477,7.13542164,110360.0,110350.0,0.00548662]
[1756206589709,7.14392342,110360.0,110350.0,0.00548662]
[1756206589912,5.9366458,110360.0,110350.0,0.00548662]
[1756206590061,7.14392342,110360.0,110350.0,0.00548662]
[1756206590464,7.11959429,110360.0,110350.0,0.00548662]
[1756206590673,6.32906146,110360.0,110350.0,0.00548662]
[1756206591446,6.93270027,110360.0,110350.0,0.00548662]
[1756206596253,6.91323601,110360.0,110350.0,0.00548662]
[1756206597411,7.00469803,110360.0,110350.0,0.00047662]
[1756206597613,7.08161228,110360.0,110350.0,0.00047662]